bitfinex/quotes_ETHUSD_20220115
["timestamp","ask_amount","ask_price","bid_price","bid_amount"]
[1642282267684,7.32658455,3346.7,3346.6,6.73125106]
[1642282267875,7.32658455,3346.7,3346.6,6.72279506]
[1642282268079,7.32658455,3346.7,3346.6,6.36003496]
[1642282268274,7.32658455,3346.7,3346.6,6.47013345]
[1642282268479,6.32658455,3346.7,3346.6,6.47013345]
[1642282268676,6.32658455,3346.7,3346.6,6.41921631]
[1642282268874,6.32658455,3346.7,3346.6,6.46729035]
[1642282269075,6.32658455,3346.7,3346.6,6.41921631]
[1642282269275,6.32658455,3346.7,3346.6,6.46789035]
[1642282269477,6.44608455,3346.7,3346.6,6.28879035]
[1642282270078,6.44608455,3346.7,3346.6,6.21408767]
[1642282270275,6.44608455,3346.7,3346.6,6.16541363]
[1642282270475,6.44608455,3346.7,3346.6,6.23316093]
[1642282270676,7.22308455,3346.7,3346.6,6.23316093]
[1642282272026,7.10358455,3346.7,3346.6,6.16541363]
[1642282273226,7.21110274,3346.7,3346.6,6.16584252]
[1642282273826,7.98810274,3346.7,3346.6,6.16584252]
[1642282274542,7.98810274,3346.7,3346.6,6.18633452]
[1642282276280,7.98810274,3346.7,3346.6,6.36907252]
[1642282276476,7.98810274,3346.7,3346.6,6.47288052]
[1642282276676,7.98810274,3346.7,3346.6,6.50256433]
[1642282276876,7.98810274,3346.7,3346.6,6.48559133]
[1642282277075,8.76510274,3346.7,3346.6,6.49199133]
[1642282277281,8.76510274,3346.7,3346.6,6.49039133]
[1642282277475,8.76510274,3346.7,3346.6,6.49119133]
[1642282277875,8.76510274,3346.7,3346.6,6.49039133]
[1642282278177,8.76510274,3346.7,3346.6,6.45771963]
[1642282278377,8.88080381,3346.7,3346.6,6.45691963]
[1642282278580,8.88080381,3346.7,3346.6,6.41611363]
[1642282278780,7.88080381,3346.7,3346.6,6.42788863]
[1642282279033,7.88080381,3346.7,3346.6,6.42972524]
[1642282279226,7.88080381,3346.7,3346.6,6.29161124]
[1642282279427,7.88080381,3346.7,3346.6,6.28461363]
[1642282279627,7.88080381,3346.7,3346.6,6.3019035]
[1642282279828,7.88080381,3346.7,3346.6,6.3027035]
[1642282280029,7.88080381,3346.7,3346.6,6.98853573]
[1642282280228,8.65780381,3346.7,3346.6,6.99333573]
[1642282280428,8.65780381,3346.7,3346.6,6.99253573]
[1642282280627,8.65780381,3346.7,3346.6,6.97044586]
[1642282280829,8.65780381,3346.7,3346.6,6.99634079]
[1642282281029,8.65780381,3346.7,3346.6,6.99554079]
[1642282281434,8.65780381,3346.7,3346.6,6.87714079]
[1642282283177,8.65780381,3346.7,3346.6,6.99319601]
[1642282283376,9.43480381,3346.7,3346.6,6.13336378]
[1642282284582,9.55430381,3346.7,3346.6,0.90593701]
[1642282284777,9.55430381,3346.7,3346.6,0.88004208]
[1642282284982,9.55430381,3346.7,3346.6,1.14350616]
[1642282285377,9.55430381,3346.7,3346.6,0.88004208]
[1642282285579,9.55430381,3346.7,3346.6,1.15695344]
[1642282285778,9.55430381,3346.7,3346.6,0.88004208]
[1642282286425,10.33130381,3346.7,3346.6,0.88004208]
[1642282287428,10.33130381,3346.7,3346.6,1.06659707]
[1642282287628,10.21180381,3346.7,3346.6,1.06659707]
[1642282288232,13.96180381,3346.7,3346.6,0.77856932]
[1642282288435,10.21180381,3346.7,3346.6,0.77856932]
[1642282288633,10.33130381,3346.7,3346.6,0.77856932]
[1642282289436,6.9,3346.6,3346.3,0.009093]
[1642282289636,6.9,3346.6,3346.0,0.429]
[1642282289637,0.06836822,3346.3,3346.0,0.009093]
[1642282289836,0.0418895,3346.1,3345.8,0.009093]
[1642282290034,0.1195,3346.3,3345.7,0.129446]
[1642282290279,0.71929355,3346.2,3345.9,0.00454739]
[1642282290481,0.1195,3346.1,3345.9,0.00454739]
[1642282290879,0.1195,3346.1,3346.0,0.01744791]
[1642282291080,8.25,3346.1,3346.0,0.01744791]
[1642282291279,8.25,3346.1,3346.0,0.02142688]
[1642282291479,8.25,3346.1,3346.0,2.688e-05]
[1642282291679,10.9,3346.0,3345.8,0.009093]
[1642282291886,7.14912876,3345.9,3345.7,0.119578]
[1642282292080,4.85,3345.9,3345.7,0.069578]
[1642282292280,3.7,3345.8,3345.3,0.1195]
[1642282292679,3.7,3345.8,3345.4,0.0022737]
[1642282292880,4.477,3345.8,3345.4,0.0022737]
[1642282293088,15.31238001,3345.6,3345.5,0.34056387]
[1642282293282,11.25,3345.5,3345.1,0.968]
[1642282293486,7.55,3345.3,3344.0,0.1461937]
[1642282293681,2.1195,3345.2,3344.4,0.119618]
[1642282293935,1.17283819,3345.4,3344.4,0.119618]
[1642282294131,2.1195,3345.3,3344.5,0.00511581]
[1642282294436,2.1195,3345.3,3344.6,0.23651]
[1642282294437,1.48987968,3344.8,3344.6,0.23651]
[1642282294634,1.48987968,3344.8,3344.4,0.119618]
[1642282294635,0.1195,3344.7,3344.4,0.119618]
[1642282294830,1.48987968,3344.8,3344.7,0.23651]
[1642282295231,1.49158495,3344.8,3344.6,0.0764579]
[1642282295431,1.49158495,3344.8,3344.7,0.16220734]
[1642282295632,1.48987968,3344.8,3344.7,0.16220734]
[1642282295833,1.48987968,3344.8,3344.5,0.16220734]
[1642282296230,0.00113685,3344.7,3344.5,0.16220734]
[1642282296633,0.85407141,3344.6,3344.5,0.16220734]
[1642282296831,0.85407141,3344.6,3344.5,0.28170734]
[1642282297036,0.00113685,3344.7,3344.5,0.28170734]
[1642282297230,1.86375715,3344.7,3344.4,0.119618]
[1642282297431,1.86375715,3344.7,3344.6,0.15796667]
[1642282297877,2.5656994,3344.7,3344.4,0.119618]
[1642282298077,2.6851994,3344.7,3344.6,0.11086667]
[1642282298277,2.74041307,3344.7,3344.6,0.11086667]
[1642282298478,2.62091307,3344.7,3344.6,0.11086667]
[1642282298679,2.62091307,3344.7,3344.5,0.06146029]
[1642282298680,3.5,3344.6,3344.5,0.06146029]
[1642282298886,5.69334823,3344.6,3344.5,0.06146029]
[1642282299079,2.19334823,3344.6,3344.5,0.17232696]
[1642282299478,2.19334823,3344.6,3344.5,0.06146029]
[1642282299683,2.19334823,3344.6,3344.5,0.14159844]
[1642282300081,2.07384823,3344.6,3344.5,0.06146029]
[1642282300478,3.87779277,3344.7,3344.5,0.06146029]
[1642282301281,1.82523696,3344.6,3344.5,0.06146029]
[1642282302127,3.75829277,3344.7,3344.5,0.06146029]
[1642282303329,0.05658907,3344.6,3344.4,0.19096099]
[1642282303731,0.05658907,3344.6,3344.4,0.07134299]
[1642282303936,1.90355923,3344.6,3344.3,0.429]
[1642282304134,0.05658907,3344.6,3344.3,0.429]
[1642282305189,0.05658907,3344.6,3344.4,0.1196]
[1642282305380,0.05658907,3344.6,3344.3,0.429]
[1642282306581,1.97570212,3344.6,3344.3,0.429]
[1642282306982,0.05658907,3344.6,3344.3,0.429]
[1642282308284,3.93450704,3344.7,3344.5,0.06242511]
[1642282308483,3.81490704,3344.7,3344.5,0.06242511]
[1642282310028,5.67837453,3344.7,3344.5,0.06242511]
[1642282310239,1.88512035,3344.6,3344.5,0.06242511]
[1642282311628,3.93440704,3344.7,3344.5,0.06242511]
[1642282311829,3.81490704,3344.7,3344.5,0.06242511]
[1642282312687,3.81490704,3344.7,3344.3,0.429]
[1642282312886,3.85,3344.6,3344.0,0.1195]
[1642282313081,0.04717915,3344.5,3344.1,0.429]
[1642282313277,0.90203176,3344.5,3344.1,0.43127369]
[1642282314079,3.93466826,3344.7,3344.1,0.43127369]
[1642282314280,5.68979592,3344.7,3344.1,0.43127369]
[1642282314478,3.81506826,3344.7,3344.1,0.43127369]
[1642282315278,0.76494713,3344.6,3344.1,0.43127369]
[1642282315485,0.76494713,3344.6,3344.2,0.00284212]
[1642282315679,0.76494713,3344.6,3344.3,0.429]
[1642282316080,0.76494713,3344.6,3344.4,0.00170527]
[1642282316734,0.76494713,3344.6,3344.1,0.00341054]
[1642282317734,1.28797469,3344.2,3344.1,0.00341054]
[1642282318942,0.65599109,3344.6,3344.1,5.80508088]
[1642282319139,0.10693109,3344.6,3344.5,14.11]
[1642282319341,0.10693109,3344.6,3344.5,5.9085]
[1642282319539,0.10693109,3344.6,3344.5,6.11569475]
[1642282319840,0.10693109,3344.6,3344.5,6.12129475]
[1642282320284,0.10693109,3344.6,3344.5,6.12769475]
[1642282320482,0.10693109,3344.6,3344.5,6.12609475]
[1642282320690,0.10693109,3344.6,3344.5,6.12289475]
[1642282320882,0.10693109,3344.6,3344.5,6.11889475]
[1642282321084,0.10693109,3344.6,3344.5,6.12209475]
[1642282321284,2.55685826,3344.7,3344.5,6.12209475]
[1642282321484,2.55685826,3344.7,3344.6,4.3695]
[1642282321686,2.55685826,3344.7,3344.6,4.94239764]
[1642282321885,1.26185826,3344.7,3344.6,23.50845554]
[1642282322283,1.26185826,3344.7,3344.6,23.50925554]
[1642282322485,1.26185826,3344.7,3344.6,23.51005554]
[1642282322685,1.26185826,3344.7,3344.6,23.50605554]
[1642282322883,1.26185826,3344.7,3344.6,23.50445554]
[1642282323086,1.26185826,3344.7,3344.6,11.55422381]
[1642282323291,1.26185826,3344.7,3344.6,11.54622381]
[1642282323485,1.26185826,3344.7,3344.6,11.52152617]
[1642282323683,1.26185826,3344.7,3344.6,11.52552617]
[1642282323930,1.26185826,3344.7,3344.6,11.52392617]
[1642282324339,1.26185826,3344.7,3344.6,11.52152617]
[1642282324530,1.26185826,3344.7,3344.6,11.52232617]
[1642282324733,1.26185826,3344.7,3344.6,11.52392617]
[1642282324934,1.26185826,3344.7,3344.6,11.51752617]
[1642282325132,1.26185826,3344.7,3344.6,11.51352617]
[1642282325331,1.26185826,3344.7,3344.6,11.51512617]
[1642282325734,1.26185826,3344.7,3344.6,11.51832617]
[1642282325938,1.26185826,3344.7,3344.6,11.52552617]
[1642282326134,1.998093,3345.8,3344.8,0.00929713]
[1642282326334,0.777,3345.7,3345.0,5.36]
[1642282326534,0.00511581,3345.6,3345.1,0.5485]
[1642282326736,0.00511581,3345.6,3345.1,0.6613]
[1642282326935,0.00454738,3345.5,3345.1,0.5485]
[1642282327135,0.00454738,3345.5,3345.1,0.5426]
[1642282327334,0.75178048,3345.4,3345.1,0.5434]
[1642282327536,1.34257449,3345.3,3345.1,0.5442]
[1642282327785,1.34598503,3345.3,3345.1,0.541]
[1642282327985,0.00284211,3345.2,3345.1,0.5434]
[1642282328384,0.00284211,3345.2,3345.1,0.5442]
[1642282328592,0.00284211,3345.2,3345.1,5.3958]
[1642282328985,0.00284211,3345.2,3345.1,0.5466]
[1642282329184,0.00284211,3345.2,3345.1,0.5458]
[1642282329384,0.00284211,3345.2,3345.1,0.545]
[1642282329586,0.77984211,3345.2,3345.1,0.545]
[1642282329784,0.77984211,3345.2,3345.1,0.5458]
[1642282330185,0.77984211,3345.2,3345.1,0.429]
[1642282330986,0.77984211,3345.2,3345.1,0.5426]
[1642282331293,0.77984211,3345.2,3345.1,0.545]
[1642282331529,1.34257449,3345.3,3345.1,0.5442]
[1642282331730,1.34257449,3345.3,3345.1,0.5466]
[1642282331928,1.34257449,3345.3,3345.2,0.1152]
[1642282332135,1.34257449,3345.3,3345.2,0.545]
[1642282332331,1.34257449,3345.3,3345.2,0.5458]
[1642282332532,1.34257449,3345.3,3345.2,0.429]
[1642282332730,2.11957449,3345.3,3345.2,0.429]
[1642282333331,2.16765615,3345.3,3345.2,0.51190653]
[1642282335190,5.16765615,3345.3,3345.2,0.51190653]
[1642282335981,5.94465615,3345.3,3345.2,0.51190653]
[1642282336382,5.94465615,3345.3,3345.2,4.26190653]
[1642282336587,5.94465615,3345.3,3345.2,4.38030653]
[1642282336782,5.94465615,3345.3,3345.2,4.38190653]
[1642282336981,5.94465615,3345.3,3345.2,4.38110653]
[1642282337183,5.94465615,3345.3,3345.2,0.63110653]
[1642282337485,5.94465615,3345.3,3345.2,0.63030653]
[1642282337682,5.94465615,3345.3,3345.2,0.51190653]
[1642282339137,6.72165615,3345.3,3345.2,0.51190653]
[1642282341738,5.72165615,3345.3,3345.2,0.51190653]
[1642282342334,6.49865615,3345.3,3345.2,0.51190653]
[1642282342784,6.108,3345.3,3345.2,0.51190653]
[1642282343286,6.1561072,3345.3,3345.2,0.51190653]
[1642282343890,7.68231182,3345.3,3345.2,0.51190653]
[1642282344090,7.80181182,3345.3,3345.2,0.51190653]
[1642282345089,7.68231182,3345.3,3345.2,0.51190653]
[1642282345490,8.45931182,3345.3,3345.2,0.51190653]
[1642282346189,8.45931182,3345.3,3345.2,0.17285553]
[1642282347043,6.9331072,3345.3,3345.2,0.17285553]
[1642282348246,18.52462583,3345.3,3345.2,0.17285553]
[1642282348449,10.95,3345.2,3344.7,0.1195]
[1642282348645,0.033063,3345.1,3344.7,0.1195]
[1642282348846,0.033063,3345.1,3344.8,0.00227369]
[1642282349047,0.1195,3345.0,3344.8,0.00227369]
[1642282350049,0.1195,3345.0,3344.3,0.00511581]
[1642282350487,0.017164,3344.4,3344.3,0.00511581]
[1642282350690,0.83598677,3344.4,3344.3,0.00511581]
[1642282353190,0.95349,3344.4,3344.3,0.07500813]
[1642282353388,0.95349,3344.4,3344.3,0.06989232]
[1642282353588,2.82620317,3344.4,3344.3,0.07500813]
[1642282354439,0.95349,3344.4,3344.3,0.07500813]
[1642282354841,2.78500515,3344.4,3344.3,0.07500813]
[1642282355639,0.95349,3344.4,3344.3,0.07500813]
[1642282355839,2.8847889,3344.4,3344.3,0.07500813]
[1642282356039,5.8847889,3344.4,3344.3,0.07500813]
[1642282356641,5.95349,3344.4,3344.3,0.07500813]
[1642282356842,6.31231001,3344.4,3344.3,0.07500813]
[1642282357044,18.38191001,3344.4,3343.9,1.6812208]
[1642282357248,8.236951,3344.0,3343.9,1.6812208]
[1642282358284,0.036951,3344.0,3343.9,1.6312208]
[1642282360185,4.586951,3344.0,3343.9,1.6312208]
[1642282360385,4.586951,3344.0,3343.9,1.3812208]
[1642282360787,6.50197674,3344.0,3343.9,1.3812208]
[1642282360988,4.586951,3344.0,3343.9,1.3812208]
[1642282361856,6.51561028,3344.0,3343.9,1.3812208]
[1642282362058,4.586951,3344.0,3343.9,1.3812208]
[1642282362462,0.036951,3344.0,3343.9,1.3812208]
[1642282363157,0.12120551,3344.0,3343.9,1.45233392]
[1642282363859,0.009093,3344.3,3343.9,1.45233392]
[1642282364259,0.009093,3344.3,3344.0,0.00170527]
[1642282364459,0.67574294,3344.2,3344.0,0.00170527]
[1642282365493,10.12282996,3344.1,3344.0,0.00170527]
[1642282365689,8.3,3344.1,3344.0,0.00170527]
[1642282366690,8.3,3344.1,3343.9,1.45233392]
[1642282366890,0.67574294,3344.2,3343.9,1.40403919]
[1642282367090,1.85822745,3344.1,3343.9,1.40403919]
[1642282367595,0.010144,3344.0,3343.9,1.40403919]
[1642282368196,0.010144,3344.0,3342.7,0.124]
[1642282368197,15.5,3343.8,3342.4,2.77059963]
[1642282368393,0.018678,3343.0,3342.4,0.1196]
[1642282368593,0.016368,3342.6,3342.5,0.00852635]
[1642282368792,0.06244245,3342.9,3342.5,0.00852635]
[1642282369044,0.87075265,3342.8,3342.5,0.00852635]
[1642282370541,0.1196,3343.2,3342.6,0.429]
[1642282370939,0.1196,3343.2,3342.7,0.0838474]
[1642282371139,0.1196,3343.2,3342.7,0.0073895]
[1642282371341,0.1196,3343.2,3342.8,0.43582108]
[1642282371541,0.68159083,3342.9,3342.7,0.0073895]
[1642282371741,0.1196,3343.2,3343.0,1.2172663]
[1642282371944,0.009093,3343.1,3342.6,0.43695793]
[1642282372141,0.009093,3343.1,3342.6,0.429]
[1642282372797,0.72771702,3343.0,3342.6,0.429]
[1642282374795,0.72771702,3343.0,3342.7,0.112]
[1642282374995,0.72771702,3343.0,3342.8,0.429]
[1642282375194,0.08689988,3343.2,3342.9,17.25]
[1642282375400,0.08689988,3343.2,3343.0,0.429]
[1642282375594,0.08689988,3343.2,3343.0,0.43468423]
[1642282375795,0.84283098,3343.1,3343.0,1.70957994]
[1642282375993,0.84283098,3343.1,3343.0,13.05957994]
[1642282376193,0.84283098,3343.1,3343.0,13.06526417]
[1642282376642,0.08689988,3343.2,3343.0,1.71526417]
[1642282377043,0.08689988,3343.2,3343.1,0.00511581]
[1642282377044,0.09600188,3343.2,3343.1,0.00511581]
[1642282377242,0.21560188,3343.2,3343.1,0.00511581]
[1642282377441,0.09600188,3343.2,3343.1,0.00511581]
[1642282377640,0.09600188,3343.2,3342.5,0.429]
[1642282377641,0.09600188,3343.2,3342.6,0.00795793]
[1642282377840,0.73595007,3343.1,3342.6,0.00795793]
[1642282378044,0.034517,3343.0,3342.6,0.00795793]
[1642282378243,0.78594771,3343.1,3342.6,0.00795793]
[1642282378540,0.78594771,3343.1,3342.7,1.3389015]
[1642282378942,0.78594771,3343.1,3342.8,0.00682108]
[1642282379143,0.79631671,3343.1,3342.8,0.00682108]
[1642282379942,3.78594771,3343.1,3342.8,0.00682108]
[1642282380222,3.78594771,3343.1,3343.0,6.25]
[1642282380223,1.18850926,3343.1,3343.0,6.25]
[1642282380417,1.18850926,3343.1,3343.0,6.679]
[1642282380917,1.18850926,3343.1,3342.8,0.00682108]
[1642282381122,0.029625,3342.9,3342.8,0.00682108]
[1642282381318,1.06520447,3342.9,3342.8,0.00682108]
[1642282382918,1.03557947,3342.9,3342.8,0.00682108]
[1642282383119,1.0858398,3342.9,3342.8,0.07017243]
[1642282383323,1.0859498,3342.9,3342.8,0.00785713]
[1642282385743,1.0725398,3342.9,3342.8,0.00785713]
[1642282386342,1.0725398,3342.9,3342.8,1.37745559]
[1642282386543,1.0846498,3342.9,3342.4,0.07752713]
[1642282386749,0.1196,3342.8,3342.4,0.07752713]
[1642282386945,1.0846498,3342.9,3342.5,0.00170527]
[1642282387144,0.9650498,3342.9,3342.5,0.00170527]
[1642282388188,0.03542541,3342.8,3342.6,0.0634931]
[1642282389992,0.03542541,3342.8,3342.6,1.11054714]
[1642282393243,0.03542541,3342.8,3342.7,0.05553975]
[1642282396290,0.67043169,3342.8,3342.7,0.06487375]
[1642282396495,0.67043169,3342.8,3342.7,0.05553975]
[1642282398294,0.85118138,3342.8,3342.6,1.17513511]
[1642282402692,0.85118138,3342.8,3342.6,0.06458797]
[1642282403091,0.85118138,3342.8,3342.5,0.06642689]
[1642282403491,0.85118138,3342.8,3342.6,0.00113685]
[1642282403694,0.85118138,3342.8,3342.6,1.32817058]
[1642282403892,4.4,3342.7,3342.6,0.00113685]
[1642282404095,6.29584644,3342.7,3342.6,0.00113685]
[1642282404892,4.4,3342.7,3342.6,0.00113685]
[1642282405093,4.5196,3342.7,3342.6,0.00113685]
[1642282405292,0.1196,3342.7,3342.6,0.00113685]
[1642282406196,0.85118138,3342.8,3342.6,0.00113685]
[1642282406646,4.4696,3342.7,3342.6,0.00113685]
[1642282406856,6.34177815,3342.7,3342.6,0.00113685]
[1642282408248,0.1196,3342.7,3342.6,0.06574153]
[1642282408454,0.85118138,3342.8,3342.6,0.06574153]
[1642282408649,0.85118138,3342.8,3342.2,0.25210679]
[1642282408849,0.85118138,3342.8,3342.3,0.429]
[1642282409050,0.85118138,3342.8,3342.3,0.43070527]
[1642282411594,0.85118138,3342.8,3342.3,2.43070527]
[1642282411795,0.85118138,3342.8,3342.3,3.25452317]
[1642282412003,0.85118138,3342.8,3342.3,1.25452317]
[1642282412397,1.2407,3343.0,3342.4,10.15]
[1642282412596,1.18850926,3343.1,3342.5,0.4420118]
[1642282412797,0.00170527,3342.9,3342.5,0.4420118]
[1642282412997,0.00170527,3342.9,3342.5,0.429]
[1642282413198,0.0926029,3342.6,3342.5,0.4855458]
[1642282417890,0.0926029,3342.6,3342.5,0.4355458]
[1642282418092,0.0926029,3342.6,3342.4,0.01956803]
[1642282418291,0.0926029,3342.6,3342.3,0.43070527]
[1642282418292,0.01004356,3342.5,3342.3,0.43070527]
[1642282418493,0.0926029,3342.6,3342.3,0.43070527]
[1642282419093,0.0926029,3342.6,3342.3,2.3009154]
[1642282419394,0.0926029,3342.6,3342.3,3.0482754]
[1642282422446,0.70707843,3342.8,3342.3,3.0482754]
[1642282423042,0.04614208,3342.7,3342.5,0.02416653]
[1642282423250,0.007525,3342.6,3342.4,0.00012856]
[1642282423546,0.1196,3342.5,3342.4,0.00012856]
[1642282425790,0.127125,3342.6,3342.4,0.00012856]
[1642282428195,0.22581764,3342.6,3342.5,0.08098422]
[1642282428398,13.13234566,3342.6,3342.5,0.08098422]
[1642282429255,18.63234566,3342.6,3342.5,0.03116929]
[1642282430059,13.13234566,3342.6,3342.5,0.03116929]
[1642282430755,14.25,3342.4,3341.4,0.119704]
[1642282430955,2.53416166,3342.3,3341.4,0.119704]
[1642282431156,2.53416166,3342.3,3341.5,0.00454738]
[1642282431356,0.90759457,3342.2,3341.5,0.00454738]
[1642282431554,2.78089032,3342.1,3341.5,0.00454738]
[1642282431959,0.00767349,3342.0,3341.5,0.00454738]
[1642282432158,0.00701032,3341.8,3341.5,0.00454738]
[1642282432356,4.42471351,3341.6,3341.5,0.00454738]
[1642282432557,6.37636786,3341.6,3341.5,0.00454738]
[1642282432798,6.37766406,3341.6,3341.5,0.00454738]
[1642282433003,4.42471351,3341.6,3341.5,0.00454738]
[1642282433200,0.87471351,3341.6,3341.4,0.07425138]
[1642282433801,1.86551934,3341.5,3341.4,0.07425138]
[1642282434004,1.86551934,3341.5,3341.3,0.27144974]
[1642282434401,1.86551934,3341.5,3340.9,0.20429256]
[1642282434402,0.87471351,3341.6,3341.0,0.27144974]
[1642282434603,0.87471351,3341.6,3341.3,0.27144974]
[1642282434801,0.87471351,3341.6,3341.5,1.21758205]
[1642282438250,0.92424938,3341.6,3341.5,1.21758205]
[1642282438847,0.92424938,3341.6,3341.4,0.04186249]
[1642282440297,0.92424938,3341.6,3341.4,1.53747163]
[1642282440499,0.92424938,3341.6,3341.4,0.04186249]
[1642282440904,3.92424938,3341.6,3341.4,0.04186249]
[1642282441496,1.99697693,3341.5,3341.4,0.04186249]
[1642282441894,1.87727693,3341.5,3341.4,0.04186249]
[1642282442295,1.87727693,3341.5,3341.3,0.06666355]
[1642282443104,3.92424938,3341.6,3341.4,0.04189126]
[1642282443297,1.85655613,3341.5,3341.4,0.04189126]
[1642282443503,1.99596806,3341.5,3341.4,0.04189126]
[1642282443695,2.02574343,3341.5,3341.4,0.04189126]
[1642282443959,0.1197,3341.5,3341.4,0.04189126]
[1642282444543,3.92424938,3341.6,3341.4,0.04189126]
[1642282448297,0.0744793,3341.5,3341.3,0.06666355]
[1642282449701,0.08389246,3341.5,3341.3,0.06666355]
[1642282449900,0.0744793,3341.5,3341.3,0.06666355]
[1642282453750,0.0853745,3341.5,3341.3,0.06666355]
[1642282453957,0.0744793,3341.5,3341.3,0.06666355]
[1642282457900,0.0744793,3341.5,3341.3,0.07660455]
[1642282458097,3.89872868,3341.6,3341.3,0.07660455]
[1642282459942,3.89872868,3341.6,3341.5,0.31002362]
[1642282463102,3.9179332,3341.6,3341.5,0.31002362]
[1642282466444,3.9179332,3341.6,3341.4,0.04408819]
[1642282467647,3.9179332,3341.6,3341.4,1.34745785]
[1642282468247,3.87471351,3341.6,3341.4,1.34745785]
[1642282470048,3.77471351,3341.6,3341.4,1.34745785]
[1642282470696,3.77471351,3341.6,3341.5,5.78373883]
[1642282470997,3.77471351,3341.6,3341.4,1.34745785]
[1642282471797,3.62471351,3341.6,3341.4,1.34745785]
[1642282474048,3.0,3341.6,3341.4,1.34745785]
[1642282474246,3.0,3341.6,3341.5,7.01673773]
[1642282475048,3.0,3341.6,3341.5,5.15]
[1642282475849,2.0,3341.6,3341.5,11.8]
[1642282476749,2.0,3341.6,3341.5,5.15]
[1642282477355,2.0,3341.6,3341.5,7.0295031]
[1642282477551,2.0,3341.6,3341.5,7.07545109]
[1642282477801,2.0,3341.6,3341.5,15.70445109]
[1642282479000,2.0,3341.6,3341.5,19.65445109]
[1642282479801,2.0,3341.6,3341.5,15.70445109]
[1642282482851,2.0,3341.6,3341.5,19.65445109]
[1642282483453,2.0,3341.6,3341.5,15.70445109]
[1642282484453,2.0,3341.6,3341.5,16.43453151]
[1642282485506,2.0,3341.6,3341.5,15.70445109]
[1642282486603,2.0,3341.6,3341.5,16.48307488]
[1642282486804,1.9,3341.6,3341.5,20.43307488]
[1642282487207,1.9,3341.6,3341.5,16.48307488]
[1642282487406,1.9,3341.6,3341.5,16.49300888]
[1642282488208,1.93648033,3341.6,3341.5,16.49300888]
[1642282490053,0.93648033,3341.6,3341.5,16.49300888]
[1642282490753,0.93648033,3341.6,3341.5,20.44300888]
[1642282491056,0.1197,3342.5,3341.7,0.74749]
[1642282491255,0.1197,3342.5,3341.8,0.441446]
[1642282491456,0.00511581,3342.4,3341.9,0.010921]
[1642282491655,0.1196,3342.3,3341.9,0.429]
[1642282491855,0.12414738,3342.3,3341.9,0.429]
[1642282492057,0.00397896,3342.2,3341.9,0.429]
[1642282492254,0.1196,3342.1,3341.9,0.438903]
[1642282492456,0.12301054,3342.1,3342.0,4.17763124]
[1642282492713,0.1196,3342.1,3342.0,4.17763124]
[1642282493805,0.1196,3342.1,3342.0,6.02616642]
[1642282494006,0.1196,3342.1,3342.0,4.17763124]
[1642282494205,0.1196,3342.5,3342.0,4.17763124]
[1642282494606,0.12528423,3342.5,3342.0,4.17763124]
[1642282494907,0.12528423,3342.5,3342.1,0.010414]
[1642282496110,0.12528423,3342.5,3342.2,0.88658605]
[1642282497250,0.12528423,3342.5,3342.1,0.010414]
[1642282498257,0.16326156,3342.5,3342.4,0.04880078]
[1642282501000,0.04366156,3342.5,3342.4,0.04880078]
[1642282502406,3.04366156,3342.5,3342.4,0.04880078]
[1642282502804,3.04366156,3342.5,3342.4,10.94880078]
[1642282503310,2.04366156,3342.5,3342.4,10.9]
[1642282503504,2.04366156,3342.5,3342.3,0.48689378]
[1642282504455,1.87175536,3342.5,3342.3,0.48689378]
[1642282508203,0.68850253,3342.5,3342.4,9.103e-05]
[1642282510206,0.68850253,3342.5,3342.3,0.46646274]
[1642282511552,0.68850253,3342.5,3342.3,0.45613836]
[1642282512456,0.1196,3343.1,3342.6,0.02677086]
[1642282512656,0.1196,3343.1,3342.8,0.01571506]
[1642282512857,0.00284212,3343.0,3342.8,0.01571506]
[1642282513156,0.00227369,3342.9,3342.8,0.02502706]
[1642282513354,0.00227369,3342.9,3342.8,0.009312]
[1642282513558,0.00227369,3342.9,3342.8,10.62133542]
[1642282514854,0.00227369,3342.9,3342.8,10.74093542]
[1642282516002,0.00227369,3342.9,3342.8,11.16993542]
[1642282516402,0.00227369,3342.9,3342.8,19.76993542]
[1642282516604,5.23227369,3343.5,3342.9,16.14719]
[1642282516804,6.23,3343.8,3343.1,0.011465]
[1642282517003,5.2062,3344.0,3343.3,13.610759]
[1642282517205,0.00170527,3343.7,3343.5,0.010784]
[1642282517410,0.00170527,3343.7,3343.5,0.439784]
[1642282517604,0.1196,3344.1,3343.6,8.15]
[1642282518005,0.00170527,3343.9,3343.7,0.009874]
[1642282518405,0.00113685,3343.8,3343.7,15.309874]
[1642282518606,0.00113685,3343.8,3343.7,15.858474]
[1642282518810,0.00113685,3343.8,3343.7,15.738874]
[1642282521551,0.00113685,3343.8,3343.7,0.438874]
[1642282521752,0.00113685,3343.8,3343.7,2.35604449]
[1642282522353,0.00113685,3343.8,3343.7,13.35604449]
[1642282523011,3.00113685,3343.8,3343.7,13.35604449]
[1642282526110,3.00113685,3343.8,3343.7,11.438874]
[1642282526753,2.00113685,3343.8,3343.7,11.438874]
[1642282533305,2.00113685,3343.8,3343.7,11.45464886]
[1642282536259,2.00113685,3343.8,3343.7,16.25464886]
[1642282537155,1.00113685,3343.8,3343.7,16.25464886]
[1642282538208,1.00113685,3343.8,3343.7,16.254611]
[1642282539205,0.93799032,3343.8,3343.7,16.254611]
[1642282544260,0.93799032,3343.8,3343.7,11.574211]
[1642282545058,0.93799032,3343.8,3343.7,17.874211]
[1642282546607,0.93799032,3343.8,3343.7,11.574211]
[1642282547415,0.1196,3344.6,3344.0,0.01561437]
[1642282547615,0.1196,3344.6,3344.1,0.439869]
[1642282547808,0.00397896,3344.5,3344.2,0.83280063]
[1642282548208,0.00341054,3344.4,3344.2,2.68075919]
[1642282548407,0.00341054,3344.4,3344.2,0.83280063]
[1642282548608,0.00284211,3344.3,3344.2,0.83280063]
[1642282548956,0.00454738,3344.3,3344.2,0.83280063]
[1642282549157,0.00454738,3344.3,3344.2,11.98280063]
[1642282550360,0.00454738,3344.3,3344.2,0.83280063]
[1642282550956,0.00454738,3344.3,3344.2,5.73280063]
[1642282552058,0.00454738,3344.3,3344.2,9.88280063]
[1642282552261,0.00454738,3344.3,3344.2,5.73280063]
[1642282553104,0.00454738,3344.3,3344.2,5.73299093]
[1642282553905,2.80454738,3344.3,3344.2,5.73299093]
[1642282554506,2.80454738,3344.3,3344.2,0.83299093]
[1642282556008,2.80454738,3344.3,3344.2,5.33299093]
[1642282557662,0.1196,3344.9,3344.2,0.83299093]
[1642282557857,0.1196,3344.9,3344.2,0.84459962]
[1642282558057,0.00113685,3344.8,3344.2,0.84459962]
[1642282558260,0.08964265,3344.3,3344.2,0.89909611]
[1642282558458,0.08964265,3344.3,3344.2,0.88976111]